[Event "*** SCC Grand Prix: Titled Tuesday Blitz"]
[Site "Chess.com"]
[Date "2020.08.25"]
[Round "3"]
[White "JesseKraai"]
[Black "catalin009"]
[Result "1-0"]
[WhiteElo "2561"]
[BlackElo "2366"]
[TimeControl "180+1"]
[EndTime "10:31:52 PDT"]
[Termination "JesseKraai won by resignation"]

1. d4 {[%clk 0:03:00.9]} 1... Nf6 {[%clk 0:02:59]} 2. c4 {[%clk 0:03:00.1]} 2...
e6 {[%clk 0:02:58.6]} 3. Nc3 {[%clk 0:02:59.6]} 3... Bb4 {[%clk 0:02:54.6]} 4.
e3 {[%clk 0:03:00]} 4... O-O {[%clk 0:02:53.6]} 5. Nf3 {[%clk 0:02:58]} 5... d5
{[%clk 0:02:48.4]} 6. Bd3 {[%clk 0:02:57.8]} 6... c5 {[%clk 0:02:47.7]} 7. O-O
{[%clk 0:02:57.7]} 7... cxd4 {[%clk 0:02:42.7]} 8. exd4 {[%clk 0:02:57.3]} 8...
dxc4 {[%clk 0:02:41.6]} 9. Bxc4 {[%clk 0:02:57.1]} 9... Qc7 {[%clk 0:02:40.7]}
10. Qd3 {[%clk 0:02:52.5]} 10... Bxc3 {[%clk 0:02:31.5]} 11. bxc3 {[%clk
0:02:51.3]} 11... b6 {[%clk 0:02:31.3]} 12. Bg5 {[%clk 0:02:45]} 12... Nbd7
{[%clk 0:02:29.2]} 13. Bb3 {[%clk 0:02:32]} 13... Bb7 {[%clk 0:02:26.7]} 14.
Rac1 {[%clk 0:02:31.3]} 14... Be4 {[%clk 0:02:15.3]} 15. Qe3 {[%clk 0:02:26.1]}
15... Rac8 {[%clk 0:02:08.3]} 16. Ne5 {[%clk 0:02:09.7]} 16... Qb7 {[%clk
0:01:26.8]} 17. Qg3 {[%clk 0:01:52.4]} 17... Nxe5 {[%clk 0:01:14.8]} 18. Bxf6
{[%clk 0:01:31]} 18... Ng6 {[%clk 0:01:12.6]} 19. Bg5 {[%clk 0:01:30.7]} 19...
Qc7 {[%clk 0:00:48.5]} 20. Qe3 {[%clk 0:01:28.3]} 20... Qb7 {[%clk 0:00:43.2]}
21. Qg3 {[%clk 0:01:18.5]} 21... b5 {[%clk 0:00:41.6]} 22. h4 {[%clk 0:01:16.7]}
22... h6 {[%clk 0:00:28.7]} 23. Be3 {[%clk 0:01:15.7]} 23... Qc7 {[%clk
0:00:28.1]} 24. Qh3 {[%clk 0:00:52.7]} 24... Ne7 {[%clk 0:00:24.9]} 25. Qg4
{[%clk 0:00:37]} 25... Bf5 {[%clk 0:00:20.2]} 26. Qe2 {[%clk 0:00:35.6]} 26...
a6 {[%clk 0:00:14.2]} 27. c4 {[%clk 0:00:31.2]} 27... bxc4 {[%clk 0:00:13.5]}
28. Rxc4 {[%clk 0:00:31.3]} 28... Qb7 {[%clk 0:00:12.6]} 29. Rc5 {[%clk
0:00:30]} 29... Rfd8 {[%clk 0:00:08.4]} 30. Rfc1 {[%clk 0:00:29.2]} 30... Be4
{[%clk 0:00:08.8]} 31. Qg4 {[%clk 0:00:25.3]} 31... Bf5 {[%clk 0:00:06.1]} 32.
Qg3 {[%clk 0:00:24]} 32... Rxc5 {[%clk 0:00:05.9]} 33. dxc5 {[%clk 0:00:23.4]}
33... Be4 {[%clk 0:00:04.2]} 34. Qe5 {[%clk 0:00:19.8]} 34... Qc6 {[%clk
0:00:03.4]} 35. f3 {[%clk 0:00:16.3]} 35... Bd5 {[%clk 0:00:03.1]} 36. Qc3
{[%clk 0:00:13.1]} 36... f6 {[%clk 0:00:02.5]} 37. Bf2 {[%clk 0:00:13.1]} 37...
e5 {[%clk 0:00:02.8]} 38. Rd1 {[%clk 0:00:12.8]} 38... Kf8 {[%clk 0:00:01.7]}
39. Rc1 {[%clk 0:00:12.4]} 39... Ke8 {[%clk 0:00:02.1]} 40. Qa5 {[%clk
0:00:12.6]} 40... Bxb3 {[%clk 0:00:02.1]} 41. axb3 {[%clk 0:00:12.6]} 41... Qb5
{[%clk 0:00:02.8]} 42. Qxb5+ {[%clk 0:00:12.4]} 42... axb5 {[%clk 0:00:03.7]}
43. Ra1 {[%clk 0:00:12.7]} 43... Nc6 {[%clk 0:00:03.6]} 44. Ra6 {[%clk
0:00:12.6]} 44... Rc8 {[%clk 0:00:04.2]} 45. Rb6 {[%clk 0:00:12.9]} 45... b4
{[%clk 0:00:04.8]} 46. Rb7 {[%clk 0:00:13.2]} 46... Kf8 {[%clk 0:00:05.3]} 47.
Kf1 {[%clk 0:00:12.6]} 47... Nd4 {[%clk 0:00:05.6]} 48. Rxb4 {[%clk 0:00:11.4]}
48... Rxc5 {[%clk 0:00:05.5]} 49. Bxd4 {[%clk 0:00:11.8]} 49... exd4 {[%clk
0:00:05.6]} 50. Rxd4 {[%clk 0:00:12.5]} 50... Rc2 {[%clk 0:00:05.4]} 51. b4
{[%clk 0:00:12.6]} 51... Rb2 {[%clk 0:00:05.2]} 52. Rc4 {[%clk 0:00:13]} 52...
Kf7 {[%clk 0:00:05.6]} 53. Kg1 {[%clk 0:00:13.5]} 53... h5 {[%clk 0:00:05.7]}
54. Kh2 {[%clk 0:00:13.4]} 54... Ke6 {[%clk 0:00:06]} 55. Kg3 {[%clk 0:00:13.7]}
55... Kf5 {[%clk 0:00:06.5]} 56. Rc5+ {[%clk 0:00:14]} 56... Kg6 {[%clk
0:00:06.5]} 57. b5 {[%clk 0:00:14.5]} 57... Kh6 {[%clk 0:00:05.7]} 58. Rd5
{[%clk 0:00:14.8]} 58... Kg6 {[%clk 0:00:05.7]} 59. Rc5 {[%clk 0:00:15.1]} 59...
Kh6 {[%clk 0:00:06.1]} 60. Kh2 {[%clk 0:00:14.3]} 60... Kg6 {[%clk 0:00:06.2]}
61. Kh3 {[%clk 0:00:14.9]} 61... Kh6 {[%clk 0:00:06.5]} 62. g4 {[%clk
0:00:15.4]} 62... hxg4+ {[%clk 0:00:06.2]} 63. Kxg4 {[%clk 0:00:15.9]} 63...
Rb4+ {[%clk 0:00:06.1]} 64. f4 {[%clk 0:00:16.2]} 64... Kg6 {[%clk 0:00:05.7]}
65. h5+ {[%clk 0:00:15.9]} 65... Kh6 {[%clk 0:00:05.8]} 66. Rd5 {[%clk
0:00:16.4]} 66... Kh7 {[%clk 0:00:04.5]} 67. Kh4 {[%clk 0:00:16]} 67... Kh6
{[%clk 0:00:04.9]} 68. Kg4 {[%clk 0:00:16.5]} 68... g6 {[%clk 0:00:05.4]} 69.
hxg6 {[%clk 0:00:15.9]} 69... Kxg6 {[%clk 0:00:06.3]} 70. Kf3 {[%clk 0:00:16]}
70... Kf7 {[%clk 0:00:05.7]} 71. f5 {[%clk 0:00:16.2]} 71... Ke7 {[%clk
0:00:05.9]} 72. Ke3 {[%clk 0:00:16.8]} 72... Ke8 {[%clk 0:00:05.5]} 73. Kd3
{[%clk 0:00:17.2]} 73... Ke7 {[%clk 0:00:05.8]} 74. Kc3 {[%clk 0:00:17.6]} 74...
Rb1 {[%clk 0:00:06.4]} 75. Kc4 {[%clk 0:00:18]} 75... Rc1+ {[%clk 0:00:06.4]}
76. Kd4 {[%clk 0:00:18.5]} 76... Rd1+ {[%clk 0:00:06.5]} 77. Kc5 {[%clk
0:00:18.9]} 77... Rc1+ {[%clk 0:00:06.9]} 78. Kb6 {[%clk 0:00:19.3]} 78... Ke8
{[%clk 0:00:07.1]} 79. Kb7 {[%clk 0:00:18.1]} 79... Re1 {[%clk 0:00:04.8]} 80.
b6 {[%clk 0:00:18.3]} 80... Re5 {[%clk 0:00:05.7]} 81. Rxe5+ {[%clk 0:00:17.7]}
81... fxe5 {[%clk 0:00:06.6]} 82. Kc7 {[%clk 0:00:18.2]} 82... e4 {[%clk
0:00:07.5]} 83. b7 {[%clk 0:00:18.7]} 83... e3 {[%clk 0:00:08.4]} 84. b8=Q+
{[%clk 0:00:19.2]} 1-0

[Event "*** SCC Grand Prix: Titled Tuesday Blitz"]
[Site "Chess.com"]
[Date "2020.08.25"]
[Round "3"]
[White "NiranjanNavalgund"]
[Black "German_Bazeev"]
[Result "0-1"]
[WhiteElo "2443"]
[BlackElo "2836"]
[TimeControl "180+1"]
[EndTime "10:31:54 PDT"]
[Termination "German_Bazeev won by checkmate"]

1. d4 {[%clk 0:03:00.9]} 1... Nf6 {[%clk 0:02:52.4]} 2. c4 {[%clk 0:03:01.1]}
2... c6 {[%clk 0:02:39.6]} 3. Nc3 {[%clk 0:03:00.9]} 3... d5 {[%clk 0:02:40.5]}
4. Nf3 {[%clk 0:03:00.9]} 4... e6 {[%clk 0:02:39.7]} 5. g3 {[%clk 0:03:00.5]}
5... Nbd7 {[%clk 0:02:34.9]} 6. Bg2 {[%clk 0:03:01.4]} 6... dxc4 {[%clk
0:02:33.6]} 7. O-O {[%clk 0:03:02.3]} 7... Be7 {[%clk 0:02:26]} 8. a4 {[%clk
0:03:02.8]} 8... a5 {[%clk 0:02:25.8]} 9. Bf4 {[%clk 0:03:03.2]} 9... O-O {[%clk
0:02:25.6]} 10. e4 {[%clk 0:03:03.5]} 10... b6 {[%clk 0:02:13.4]} 11. Qe2 {[%clk
0:03:03.1]} 11... Ba6 {[%clk 0:02:08.9]} 12. Ne5 {[%clk 0:03:00.7]} 12... Nxe5
{[%clk 0:02:08]} 13. dxe5 {[%clk 0:03:00.7]} 13... Nd7 {[%clk 0:02:08.2]} 14.
Rfd1 {[%clk 0:02:59.7]} 14... Qc7 {[%clk 0:02:08.5]} 15. h4 {[%clk 0:02:57]}
15... Nxe5 {[%clk 0:02:08.1]} 16. Qh5 {[%clk 0:02:56.4]} 16... f6 {[%clk
0:02:06.6]} 17. Bh3 {[%clk 0:02:55.5]} 17... Bc8 {[%clk 0:01:59]} 18. Rd2 {[%clk
0:02:54.5]} 18... Bc5 {[%clk 0:01:48.5]} 19. Rad1 {[%clk 0:02:53.2]} 19... Qf7
{[%clk 0:01:48.4]} 20. Qe2 {[%clk 0:02:50.3]} 20... Nd3 {[%clk 0:01:46.3]} 21.
Be3 {[%clk 0:02:48]} 21... e5 {[%clk 0:01:41.5]} 22. Bg2 {[%clk 0:02:46.8]}
22... Be6 {[%clk 0:01:34.7]} 23. b3 {[%clk 0:02:46.3]} 23... Bb4 {[%clk
0:01:06.7]} 24. Rc1 {[%clk 0:02:41.1]} 24... Nc5 {[%clk 0:00:55.9]} 25. Bxc5
{[%clk 0:02:38.6]} 25... bxc5 {[%clk 0:00:51.2]} 26. bxc4 {[%clk 0:02:37.7]}
26... Bxc4 {[%clk 0:00:50.2]} 27. Qg4 {[%clk 0:02:36.4]} 27... Be6 {[%clk
0:00:50]} 28. Qe2 {[%clk 0:02:35.5]} 28... Rfd8 {[%clk 0:00:46]} 29. Rxd8+
{[%clk 0:02:34.5]} 29... Rxd8 {[%clk 0:00:46.9]} 30. Qa6 {[%clk 0:02:33.5]}
30... Qd7 {[%clk 0:00:39.6]} 31. Rd1 {[%clk 0:02:29.9]} 31... Qc7 {[%clk
0:00:34.6]} 32. Rxd8+ {[%clk 0:02:28.6]} 32... Qxd8 {[%clk 0:00:35.5]} 33. Qxc6
{[%clk 0:02:29.2]} 33... Qd7 {[%clk 0:00:33.6]} 34. Qa8+ {[%clk 0:02:26.3]}
34... Qc8 {[%clk 0:00:33.5]} 35. Qxc8+ {[%clk 0:02:18.6]} 35... Bxc8 {[%clk
0:00:34.4]} 36. Nb5 {[%clk 0:02:18.1]} 36... Bd7 {[%clk 0:00:34]} 37. Bf1 {[%clk
0:02:18.1]} 37... Be6 {[%clk 0:00:31.8]} 38. Nd6 {[%clk 0:02:17.9]} 38... Kf8
{[%clk 0:00:31.5]} 39. Bc4 {[%clk 0:02:16.3]} 39... Bd7 {[%clk 0:00:29]} 40. Bb3
{[%clk 0:02:10.8]} 40... Ke7 {[%clk 0:00:26.5]} 41. Nc4 {[%clk 0:02:10]} 41...
Be6 {[%clk 0:00:20.4]} 42. Kf1 {[%clk 0:02:09]} 42... g6 {[%clk 0:00:19.4]} 43.
Ke2 {[%clk 0:02:08]} 43... Bc3 {[%clk 0:00:17.9]} 44. Kd3 {[%clk 0:02:04]} 44...
Bb4 {[%clk 0:00:18.3]} 45. Ke2 {[%clk 0:01:59.8]} 45... h5 {[%clk 0:00:18.2]}
46. Kd3 {[%clk 0:01:59.3]} 46... g5 {[%clk 0:00:14.9]} 47. Ke2 {[%clk
0:01:51.1]} 47... Bf7 {[%clk 0:00:14.2]} 48. Kf3 {[%clk 0:01:45.7]} 48... Be6
{[%clk 0:00:13.2]} 49. Ke2 {[%clk 0:01:45.7]} 49... Bc3 {[%clk 0:00:12.9]} 50.
Kd3 {[%clk 0:01:44.6]} 50... Bd4 {[%clk 0:00:13.4]} 51. Ke2 {[%clk 0:01:44.5]}
51... Bg4+ {[%clk 0:00:13.8]} 52. f3 {[%clk 0:01:44.2]} 52... Be6 {[%clk
0:00:14.3]} 53. Nxa5 {[%clk 0:01:44.4]} 53... Bc8 {[%clk 0:00:11.4]} 54. Bc4
{[%clk 0:01:34.6]} 54... gxh4 {[%clk 0:00:07.9]} 55. gxh4 {[%clk 0:01:34.1]}
55... f5 {[%clk 0:00:08.3]} 56. Nb3 {[%clk 0:01:33.6]} 56... fxe4 {[%clk
0:00:08.1]} 57. fxe4 {[%clk 0:01:34.5]} 57... Bc3 {[%clk 0:00:07.1]} 58. Nxc5
{[%clk 0:01:33.6]} 58... Kd6 {[%clk 0:00:07.6]} 59. Nd3 {[%clk 0:01:32.8]} 59...
Bd4 {[%clk 0:00:08]} 60. a5 {[%clk 0:01:32.7]} 60... Bg4+ {[%clk 0:00:08.5]} 61.
Kd2 {[%clk 0:01:29.9]} 61... Kc6 {[%clk 0:00:08.9]} 62. Nb4+ {[%clk 0:01:18.3]}
62... Kc5 {[%clk 0:00:07.8]} 63. Nd5 {[%clk 0:01:10.2]} 63... Kxc4 {[%clk
0:00:07.3]} 64. a6 {[%clk 0:01:10.7]} 64... Ba7 {[%clk 0:00:05.2]} 65. Nf6
{[%clk 0:01:09.8]} 65... Bf3 {[%clk 0:00:03.3]} 66. Nd7 {[%clk 0:01:08.8]} 66...
Kd4 {[%clk 0:00:03.6]} 67. Nf6 {[%clk 0:01:05]} 67... Bb6 {[%clk 0:00:03.9]} 68.
Ke1 {[%clk 0:01:00.5]} 68... Ba7 {[%clk 0:00:04.2]} 69. Kf2 {[%clk 0:01:00.7]}
69... Bxe4 {[%clk 0:00:04.7]} 70. Nxh5 {[%clk 0:01:00.7]} 70... Bd3 {[%clk
0:00:05.1]} 71. Nf6 {[%clk 0:00:59.7]} 71... Bxa6 {[%clk 0:00:06]} 72. h5 {[%clk
0:01:00]} 72... e4 {[%clk 0:00:06.6]} 73. h6 {[%clk 0:00:59.4]} 73... Ke5+
{[%clk 0:00:07.2]} 74. Kg3 {[%clk 0:00:57.7]} 74... Kxf6 {[%clk 0:00:07.8]} 75.
Kf4 {[%clk 0:00:58.3]} 75... e3 {[%clk 0:00:07.8]} 76. Ke4 {[%clk 0:00:59.1]}
76... Kg6 {[%clk 0:00:07.9]} 77. h7 {[%clk 0:00:59.8]} 77... Kxh7 {[%clk
0:00:08]} 78. Kf3 {[%clk 0:01:00.5]} 78... Kg6 {[%clk 0:00:08.4]} 79. Kg2 {[%clk
0:01:00.9]} 79... Kf5 {[%clk 0:00:09.3]} 80. Kg1 {[%clk 0:01:00.2]} 80... Ke4
{[%clk 0:00:10.2]} 81. Kg2 {[%clk 0:01:00]} 81... Kd3 {[%clk 0:00:11.1]} 82. Kf3
{[%clk 0:01:00.3]} 82... Kd2 {[%clk 0:00:12]} 83. Kg2 {[%clk 0:01:00.8]} 83...
e2 {[%clk 0:00:12.1]} 84. Kf3 {[%clk 0:01:01.3]} 84... Bd4 {[%clk 0:00:12.1]}
85. Kg2 {[%clk 0:01:02.2]} 85... Ba1 {[%clk 0:00:13]} 86. Kf3 {[%clk 0:01:03.1]}
86... Bd3 {[%clk 0:00:13.2]} 87. Kg2 {[%clk 0:01:04]} 87... Bb1 {[%clk
0:00:14.1]} 88. Kf3 {[%clk 0:01:04.9]} 88... e1=Q {[%clk 0:00:14.2]} 89. Kg2
{[%clk 0:01:05.8]} 89... Qe3 {[%clk 0:00:13.4]} 90. Kf1 {[%clk 0:01:03]} 90...
Bd3+ {[%clk 0:00:12.9]} 91. Kg2 {[%clk 0:01:02.2]} 91... Qg5+ {[%clk 0:00:13]}
92. Kf3 {[%clk 0:01:02.4]} 92... Qf5+ {[%clk 0:00:11.1]} 93. Kg3 {[%clk
0:01:02.9]} 93... Be5+ {[%clk 0:00:09.7]} 94. Kg2 {[%clk 0:01:02.7]} 94... Be4+
{[%clk 0:00:09.5]} 95. Kg1 {[%clk 0:01:03.1]} 95... Qg4+ {[%clk 0:00:09.5]} 96.
Kf2 {[%clk 0:01:03.5]} 96... Qg2# {[%clk 0:00:09.7]} 0-1

[Event "*** SCC Grand Prix: Titled Tuesday Blitz"]
[Site "Chess.com"]
[Date "2020.08.25"]
[Round "3"]
[White "Pikachess999"]
[Black "pirulillo"]
[Result "0-1"]
[WhiteElo "2377"]
[BlackElo "2174"]
[TimeControl "180+1"]
[EndTime "10:31:59 PDT"]
[Termination "pirulillo won by resignation"]

1. e4 {[%clk 0:03:00.9]} 1... c5 {[%clk 0:02:59]} 2. a3 {[%clk 0:03:00.6]} 2...
g6 {[%clk 0:02:55.7]} 3. h4 {[%clk 0:03:00]} 3... h5 {[%clk 0:02:53.7]} 4. Nc3
{[%clk 0:02:57.9]} 4... Bg7 {[%clk 0:02:53]} 5. Nf3 {[%clk 0:02:57.5]} 5... Nc6
{[%clk 0:02:47.7]} 6. Bb5 {[%clk 0:02:57.2]} 6... Nd4 {[%clk 0:02:47]} 7. Bc4
{[%clk 0:02:50.7]} 7... e6 {[%clk 0:02:43.8]} 8. Ne2 {[%clk 0:02:36.5]} 8...
Nxf3+ {[%clk 0:02:41.8]} 9. gxf3 {[%clk 0:02:37.4]} 9... d5 {[%clk 0:02:40.6]}
10. Bb5+ {[%clk 0:02:36.6]} 10... Bd7 {[%clk 0:02:40.3]} 11. Bxd7+ {[%clk
0:02:36.7]} 11... Qxd7 {[%clk 0:02:41.2]} 12. d3 {[%clk 0:02:36.1]} 12... O-O-O
{[%clk 0:02:35.3]} 13. Nc3 {[%clk 0:02:34.8]} 13... Kb8 {[%clk 0:02:28.7]} 14.
Qe2 {[%clk 0:02:34.7]} 14... Ne7 {[%clk 0:02:26.2]} 15. Bf4+ {[%clk 0:02:34.8]}
15... Ka8 {[%clk 0:02:19.3]} 16. Bg3 {[%clk 0:02:34.9]} 16... a6 {[%clk
0:02:14.5]} 17. O-O {[%clk 0:02:34.1]} 17... Ka7 {[%clk 0:02:07.8]} 18. Rab1
{[%clk 0:02:27.4]} 18... d4 {[%clk 0:02:07.5]} 19. Na2 {[%clk 0:02:25.8]} 19...
e5 {[%clk 0:02:01.5]} 20. f4 {[%clk 0:02:05.2]} 20... Nc6 {[%clk 0:01:56.6]} 21.
b4 {[%clk 0:02:02]} 21... exf4 {[%clk 0:01:42.3]} 22. Bxf4 {[%clk 0:02:00.6]}
22... Qh3 {[%clk 0:01:39.7]} 23. bxc5 {[%clk 0:01:34.8]} 23... Be5 {[%clk
0:01:33.1]} 24. Bxe5 {[%clk 0:01:20.7]} 24... Nxe5 {[%clk 0:01:31.5]} 25. f4
{[%clk 0:01:21.1]} 25... Ng4 {[%clk 0:01:28.1]} 26. Rf3 {[%clk 0:00:47]} 26...
Qxh4 {[%clk 0:01:25.7]} 27. c6 {[%clk 0:00:41.4]} 27... bxc6 {[%clk 0:01:15.8]}
28. Nb4 {[%clk 0:00:41.6]} 28... Qf6 {[%clk 0:01:10]} 29. e5 {[%clk 0:00:39.1]}
29... Qe6 {[%clk 0:01:09.1]} 30. Qe4 {[%clk 0:00:38.4]} 30... Rc8 {[%clk
0:01:08.3]} 31. Rbf1 {[%clk 0:00:27.9]} 31... c5 {[%clk 0:01:05.7]} 32. Nd5
{[%clk 0:00:27.2]} 32... Rhd8 {[%clk 0:01:03.2]} 33. c4 {[%clk 0:00:20.2]} 33...
dxc3 {[%clk 0:00:59.4]} 34. Nxc3 {[%clk 0:00:20.7]} 34... Rd4 {[%clk 0:00:57.9]}
35. Qe2 {[%clk 0:00:19.1]} 35... Nh6 {[%clk 0:00:56]} 36. R3f2 {[%clk
0:00:17.6]} 36... Nf5 {[%clk 0:00:55.1]} 37. Rb1 {[%clk 0:00:17.9]} 37... Rb8
{[%clk 0:00:54]} 38. Rxb8 {[%clk 0:00:17.5]} 38... Kxb8 {[%clk 0:00:54.9]} 39.
Qb2+ {[%clk 0:00:18]} 39... Ka7 {[%clk 0:00:54.8]} 40. Ne4 {[%clk 0:00:18]}
40... Qb6 {[%clk 0:00:54.2]} 41. Qc2 {[%clk 0:00:16.7]} 41... c4 {[%clk
0:00:46.6]} 42. dxc4 {[%clk 0:00:15.4]} 42... Ne3 {[%clk 0:00:43.6]} 43. c5
{[%clk 0:00:15.5]} 43... Qc6 {[%clk 0:00:38.9]} 44. Qb3 {[%clk 0:00:10.1]} 44...
Rxe4 {[%clk 0:00:37.1]} 45. Qxf7+ {[%clk 0:00:10.3]} 45... Qb7 {[%clk
0:00:35.3]} 46. Qxg6 {[%clk 0:00:09.5]} 46... Rc4 {[%clk 0:00:32.2]} 47. Qb6+
{[%clk 0:00:07.7]} 47... Qxb6 {[%clk 0:00:32.4]} 48. cxb6+ {[%clk 0:00:08.6]}
48... Kxb6 {[%clk 0:00:33.2]} 49. f5 {[%clk 0:00:08.9]} 49... Rc1+ {[%clk
0:00:30.4]} 50. Kh2 {[%clk 0:00:09.1]} 50... Ng4+ {[%clk 0:00:30.5]} 51. Kg3
{[%clk 0:00:10]} 51... Nxe5 {[%clk 0:00:30.7]} 52. f6 {[%clk 0:00:08.5]} 52...
Rc3+ {[%clk 0:00:27.6]} 53. Kh4 {[%clk 0:00:08.4]} 53... Rxa3 {[%clk 0:00:26.9]}
54. f7 {[%clk 0:00:06.9]} 54... Nxf7 {[%clk 0:00:26.7]} 55. Rxf7 {[%clk
0:00:07.8]} 55... Ra5 {[%clk 0:00:25.8]} 56. Rf6+ {[%clk 0:00:06.8]} 56... Kb5
{[%clk 0:00:21.9]} 57. Rh6 {[%clk 0:00:05]} 57... Kb4 {[%clk 0:00:21.1]} 58.
Rb6+ {[%clk 0:00:04.6]} 58... Kc3 {[%clk 0:00:18.8]} 59. Rb8 {[%clk 0:00:02.6]}
59... Ra1 {[%clk 0:00:17.3]} 60. Rc8+ {[%clk 0:00:03]} 60... Kb4 {[%clk
0:00:16.2]} 61. Kxh5 {[%clk 0:00:03.9]} 61... a5 {[%clk 0:00:16.2]} 62. Kg4
{[%clk 0:00:04.8]} 62... a4 {[%clk 0:00:16]} 63. Kf3 {[%clk 0:00:05.7]} 63...
Re1 {[%clk 0:00:14.6]} 64. Rb8+ {[%clk 0:00:05.3]} 64... Ka3 {[%clk 0:00:13.9]}
65. Rb7 {[%clk 0:00:05.2]} 65... Re6 {[%clk 0:00:13.5]} 66. Kf2 {[%clk
0:00:05.3]} 66... Ka2 {[%clk 0:00:13.8]} 67. Rb5 {[%clk 0:00:05.4]} 67... a3
{[%clk 0:00:13.9]} 68. Kf3 {[%clk 0:00:05.9]} 68... Ka1 {[%clk 0:00:14]} 69. Rb4
{[%clk 0:00:05.2]} 69... a2 {[%clk 0:00:14]} 70. Kf2 {[%clk 0:00:05]} 70... Rc6
{[%clk 0:00:13.6]} 71. Rb3 {[%clk 0:00:04.8]} 71... Rc2+ {[%clk 0:00:13.7]} 72.
Ke3 {[%clk 0:00:05.1]} 72... Rb2 {[%clk 0:00:14.3]} 73. Rd3 {[%clk 0:00:04]}
73... Kb1 {[%clk 0:00:14.4]} 74. Rd1+ {[%clk 0:00:04.4]} 74... Kc2 {[%clk
0:00:14.5]} 75. Rd2+ {[%clk 0:00:04.7]} 75... Kc3 {[%clk 0:00:14.5]} 76. Rd3+
{[%clk 0:00:05]} 76... Kc4 {[%clk 0:00:14.6]} 77. Ra3 {[%clk 0:00:05.1]} 77...
Rb3+ {[%clk 0:00:11.3]} 0-1

[Event "*** SCC Grand Prix: Titled Tuesday Blitz"]
[Site "Chess.com"]
[Date "2020.08.25"]
[Round "3"]
[White "BakaPG"]
[Black "SergeyKarjakin"]
[Result "0-1"]
[WhiteElo "2681"]
[BlackElo "2983"]
[TimeControl "180+1"]
[EndTime "10:32:07 PDT"]
[Termination "SergeyKarjakin won on time"]

1. e4 {[%clk 0:03:00.9]} 1... c6 {[%clk 0:03:00.3]} 2. d4 {[%clk 0:02:59.2]}
2... d5 {[%clk 0:03:01.2]} 3. Nd2 {[%clk 0:02:59.5]} 3... dxe4 {[%clk
0:02:58.9]} 4. Nxe4 {[%clk 0:02:59.9]} 4... Bf5 {[%clk 0:02:59.5]} 5. Ng3 {[%clk
0:02:57.9]} 5... Bg6 {[%clk 0:02:59.5]} 6. Nf3 {[%clk 0:02:58]} 6... Nf6 {[%clk
0:02:56.8]} 7. h4 {[%clk 0:02:54.8]} 7... Nh5 {[%clk 0:02:56.6]} 8. Ne5 {[%clk
0:02:46.8]} 8... Nxg3 {[%clk 0:02:54.9]} 9. fxg3 {[%clk 0:02:46.8]} 9... Nd7
{[%clk 0:02:53.4]} 10. Nxg6 {[%clk 0:02:44.1]} 10... hxg6 {[%clk 0:02:52.8]} 11.
c3 {[%clk 0:02:40.7]} 11... e6 {[%clk 0:02:38.3]} 12. Qf3 {[%clk 0:02:36]} 12...
Bd6 {[%clk 0:02:34.2]} 13. Bf4 {[%clk 0:02:30.1]} 13... Bxf4 {[%clk 0:02:33.9]}
14. Qxf4 {[%clk 0:02:28.6]} 14... g5 {[%clk 0:02:33.8]} 15. Qf2 {[%clk 0:02:27]}
15... Qf6 {[%clk 0:02:26.3]} 16. Bd3 {[%clk 0:02:18.4]} 16... Rd8 {[%clk
0:02:19.2]} 17. Qxf6 {[%clk 0:02:14]} 17... Nxf6 {[%clk 0:02:20.1]} 18. Ke2
{[%clk 0:02:13.7]} 18... gxh4 {[%clk 0:02:07.9]} 19. Rxh4 {[%clk 0:02:05.3]}
19... Ke7 {[%clk 0:02:05.1]} 20. Rah1 {[%clk 0:02:03.5]} 20... Rhf8 {[%clk
0:02:01.8]} 21. a3 {[%clk 0:01:48.3]} 21... Rd5 {[%clk 0:02:00.4]} 22. Bc2
{[%clk 0:01:33.2]} 22... Rfd8 {[%clk 0:01:56.8]} 23. Rd1 {[%clk 0:01:30.3]}
23... e5 {[%clk 0:01:41.2]} 24. Bb3 {[%clk 0:01:22]} 24... Rb5 {[%clk
0:01:40.1]} 25. dxe5 {[%clk 0:01:13.6]} 25... Rxe5+ {[%clk 0:01:41]} 26. Kf3
{[%clk 0:01:12]} 26... Rxd1 {[%clk 0:01:31.2]} 27. Bxd1 {[%clk 0:01:11.1]} 27...
Rd5 {[%clk 0:01:31.3]} 28. Rd4 {[%clk 0:01:07.5]} 28... Re5 {[%clk 0:01:07.7]}
29. Bb3 {[%clk 0:01:03.6]} 29... a5 {[%clk 0:01:06.5]} 30. a4 {[%clk 0:00:58.5]}
30... Nd7 {[%clk 0:01:03.8]} 31. Bc2 {[%clk 0:00:52.1]} 31... Nc5 {[%clk
0:01:03.8]} 32. Rf4 {[%clk 0:00:46.8]} 32... g6 {[%clk 0:01:00.4]} 33. Kf2
{[%clk 0:00:36.9]} 33... Ne6 {[%clk 0:00:57.6]} 34. Re4 {[%clk 0:00:33.9]} 34...
Rxe4 {[%clk 0:00:53.4]} 35. Bxe4 {[%clk 0:00:32.7]} 35... Kd6 {[%clk 0:00:54.3]}
36. Ke3 {[%clk 0:00:31.2]} 36... Ke5 {[%clk 0:00:54.1]} 37. b4 {[%clk
0:00:26.1]} 37... axb4 {[%clk 0:00:47.4]} 38. cxb4 {[%clk 0:00:25.5]} 38... Nc7
{[%clk 0:00:47.6]} 39. Bf3 {[%clk 0:00:21.8]} 39... g5 {[%clk 0:00:37.5]} 40.
Kd3 {[%clk 0:00:20.6]} 40... f5 {[%clk 0:00:34.1]} 41. g4 {[%clk 0:00:20.5]}
41... fxg4 {[%clk 0:00:32.9]} 42. Bxg4 {[%clk 0:00:20.6]} 42... Nd5 {[%clk
0:00:33.6]} 43. b5 {[%clk 0:00:15.7]} 43... cxb5 {[%clk 0:00:33.7]} 44. axb5
{[%clk 0:00:15.1]} 44... b6 {[%clk 0:00:34.6]} 45. Bf3 {[%clk 0:00:14]} 45...
Nc7 {[%clk 0:00:32.1]} 46. Bc6 {[%clk 0:00:12.8]} 46... Ne6 {[%clk 0:00:32.6]}
47. Ke3 {[%clk 0:00:12.3]} 47... Nd4 {[%clk 0:00:32.1]} 48. Be8 {[%clk
0:00:11.9]} 48... Nf5+ {[%clk 0:00:31.4]} 49. Kf3 {[%clk 0:00:11.4]} 49... Nd6
{[%clk 0:00:29.9]} 50. Bd7 {[%clk 0:00:10.1]} 50... Kf6 {[%clk 0:00:28.5]} 51.
Ke3 {[%clk 0:00:08.9]} 51... Ke5 {[%clk 0:00:24.9]} 52. Kf3 {[%clk 0:00:08.4]}
52... Ne4 {[%clk 0:00:25.4]} 53. Bc6 {[%clk 0:00:07.2]} 53... Nf6 {[%clk
0:00:25.3]} 54. Ke3 {[%clk 0:00:07.3]} 54... Kf5 {[%clk 0:00:25.5]} 55. Kf3
{[%clk 0:00:06.9]} 55... g4+ {[%clk 0:00:23.4]} 56. Ke3 {[%clk 0:00:07]} 56...
Ke5 {[%clk 0:00:23.7]} 57. Bb7 {[%clk 0:00:05.8]} 57... Ne8 {[%clk 0:00:15.2]}
58. Bc8 {[%clk 0:00:05.2]} 58... Nf6 {[%clk 0:00:14]} 59. Bb7 {[%clk 0:00:04.5]}
59... Kf5 {[%clk 0:00:12.8]} 60. Bc8+ {[%clk 0:00:04.3]} 60... Kg5 {[%clk
0:00:13.1]} 61. Kd4 {[%clk 0:00:04.4]} 61... Kf4 {[%clk 0:00:13.1]} 62. Bb7
{[%clk 0:00:01.8]} 62... g3 {[%clk 0:00:06.5]} 63. Bc6 {[%clk 0:00:02.3]} 63...
Ng4 {[%clk 0:00:06.5]} 64. Kd5 {[%clk 0:00:02]} 64... Ne3+ {[%clk 0:00:06.6]}
65. Kd6 {[%clk 0:00:02.7]} 65... Nc4+ {[%clk 0:00:06.3]} 66. Kc7 {[%clk
0:00:02.6]} 66... Ke5 {[%clk 0:00:06.7]} 67. Kd7 {[%clk 0:00:02.9]} 67... Kd4
{[%clk 0:00:06.5]} 68. Kc7 {[%clk 0:00:03.3]} 68... Kc5 {[%clk 0:00:06.6]} 69.
Kd7 {[%clk 0:00:03.6]} 69... Nd6 {[%clk 0:00:04.6]} 70. Ke6 {[%clk 0:00:03.9]}
70... Nxb5 {[%clk 0:00:04.9]} 71. Bd7 {[%clk 0:00:04.2]} 71... Nd4+ {[%clk
0:00:04.5]} 72. Ke5 {[%clk 0:00:04.3]} 72... Ne2 {[%clk 0:00:02.6]} 73. Ke4
{[%clk 0:00:03.9]} 73... Kd6 {[%clk 0:00:03.2]} 74. Be8 {[%clk 0:00:02.9]} 74...
Ke7 {[%clk 0:00:03.4]} 0-1